bitfinex/quotes_BTCUSD_20220207
["timestamp","ask_amount","ask_price","bid_price","bid_amount"]
[1644218264206,0.0468,42759.0,42751.0,0.3671]
[1644218264806,0.34761048,42759.0,42751.0,0.3621]
[1644218265305,0.34732901,42759.0,42751.0,0.3621]
[1644218265706,0.34732901,42759.0,42751.0,0.4121]
[1644218269256,0.34732901,42759.0,42751.0,0.4071]
[1644218271103,0.34732901,42759.0,42751.0,0.3571]
[1644218272208,0.2866403,42758.0,42751.0,0.3571]
[1644218272404,0.3334403,42758.0,42751.0,0.3571]
[1644218272805,0.35,42757.0,42749.0,0.20042538]
[1644218273003,0.26228941,42755.0,42749.0,0.20042538]
[1644218273454,0.07671129,42752.0,42749.0,0.20042538]
[1644218273656,0.07671129,42752.0,42750.0,0.32246]
[1644218274259,0.3344079,42752.0,42749.0,0.20042538]
[1644218275759,0.3844079,42752.0,42749.0,0.20042538]
[1644218276966,0.12671129,42752.0,42749.0,0.20042538]
[1644218277605,0.07671129,42752.0,42749.0,0.25042538]
[1644218279806,0.12671129,42752.0,42749.0,0.20042538]
[1644218280010,0.17351129,42752.0,42749.0,0.25042538]
[1644218280205,0.17351129,42752.0,42749.0,0.20042538]
[1644218280407,0.17351129,42752.0,42750.0,0.20042538]
[1644218281473,0.17351129,42752.0,42749.0,0.20042538]
[1644218282260,0.17351129,42752.0,42750.0,0.20042538]
[1644218282662,0.17351129,42752.0,42749.0,0.20042538]
[1644218283660,0.17324591,42752.0,42749.0,0.20042538]
[1644218286808,0.17324591,42752.0,42748.0,0.20042538]
[1644218287010,0.17324591,42752.0,42748.0,0.2011059]
[1644218287210,0.17324591,42752.0,42749.0,0.20042538]
[1644218287815,0.09653462,42752.0,42749.0,0.20042538]
[1644218288312,0.0468,42752.0,42749.0,0.20042538]
[1644218288560,0.0468,42752.0,42750.0,0.20042538]
[1644218289161,0.07103368,42753.0,42750.0,0.20042538]
[1644218289361,0.07103368,42753.0,42748.0,0.00068052]
[1644218289362,0.0468,42752.0,42745.0,0.20042538]
[1644218289560,0.3,42751.0,42748.0,0.00068052]
[1644218289763,0.23685113,42750.0,42748.0,0.00068052]
[1644218289961,0.327202,42749.0,42748.0,0.00068052]
[1644218290162,0.84121725,42749.0,42748.0,0.00068052]
[1644218290368,0.89121725,42749.0,42748.0,0.00068052]
[1644218290563,0.89121725,42749.0,42743.0,0.00020862]
[1644218290564,0.08854587,42746.0,42743.0,0.00020862]
[1644218290763,0.0468,42745.0,42742.0,0.200634]
[1644218290965,0.0468,42745.0,42742.0,0.20042538]
[1644218291463,0.32860068,42745.0,42742.0,0.20042538]
[1644218291862,0.0468,42745.0,42742.0,0.20042538]
[1644218292711,0.0718,42745.0,42742.0,0.20042538]
[1644218293311,0.0718,42745.0,42742.0,0.200634]
[1644218294011,0.0468,42745.0,42743.0,0.05]
[1644218294209,0.0468,42745.0,42742.0,0.20042538]
[1644218294411,0.0468,42745.0,42742.0,0.200634]
[1644218294809,0.0648,42745.0,42742.0,0.200634]
[1644218295210,0.3466503,42745.0,42742.0,0.00020862]
[1644218295417,0.0648,42745.0,42741.0,0.25110567]
[1644218295610,0.0648,42745.0,42741.0,0.20110567]
[1644218296057,0.0468,42745.0,42742.0,0.20042538]
[1644218296256,0.0468,42745.0,42743.0,0.05]
[1644218296857,0.0638,42745.0,42743.0,0.05]
[1644218297756,0.0638,42745.0,42742.0,0.00020862]
[1644218297961,0.0468,42745.0,42743.0,0.05]
[1644218298157,0.0468,42745.0,42742.0,0.0008889]
[1644218298358,0.0468,42745.0,42743.0,0.05]
[1644218298556,0.0468,42745.0,42742.0,0.0008889]
[1644218298758,0.0638,42745.0,42742.0,0.0008889]
[1644218298956,0.0638,42745.0,42744.0,0.05]
[1644218299357,0.0638,42745.0,42742.0,0.00020862]
[1644218299557,0.0638,42745.0,42741.0,0.20110567]
[1644218300007,0.0468,42745.0,42741.0,0.20042538]
[1644218300209,0.0468,42745.0,42741.0,0.20110567]
[1644218300807,0.0648,42745.0,42741.0,0.20110567]
[1644218301007,0.0648,42745.0,42743.0,0.20973215]
[1644218302109,0.0468,42745.0,42743.0,0.20973215]
[1644218302308,0.0468,42745.0,42744.0,0.05]
[1644218302708,0.0468,42745.0,42743.0,0.20973215]
[1644218302911,0.0648,42745.0,42743.0,0.20973215]
[1644218303985,0.0648,42745.0,42744.0,0.00838218]
[1644218304161,0.0468,42745.0,42744.0,0.00838218]
[1644218304860,0.0628,42745.0,42744.0,0.00838218]
[1644218305962,0.0468,42745.0,42744.0,0.00838218]
[1644218306765,0.01631597,42745.0,42744.0,0.00838218]
[1644218306963,0.34351797,42745.0,42744.0,0.00838218]
[1644218308006,0.32751797,42745.0,42744.0,0.00838218]
[1644218308409,0.60661633,42745.0,42744.0,0.00838218]
[1644218308807,0.62561633,42745.0,42744.0,0.00838218]
[1644218310006,0.60661633,42745.0,42744.0,0.00838218]
[1644218310706,0.62961633,42745.0,42744.0,0.00838218]
[1644218311959,0.60661633,42745.0,42744.0,0.00838218]
[1644218312760,0.62961633,42745.0,42744.0,0.00838218]
[1644218313359,0.62961633,42745.0,42743.0,0.00020862]
[1644218313562,0.62961633,42745.0,42740.0,0.20042538]
[1644218313563,0.27418309,42744.0,42742.0,0.00068028]
[1644218313760,0.65138509,42744.0,42743.0,0.00838218]
[1644218314811,0.401202,42744.0,42743.0,0.00838218]
[1644218315610,0.401202,42744.0,42742.0,0.00020862]
[1644218315810,0.024,42744.0,42743.0,0.00838218]
[1644218316009,0.00031597,42745.0,42743.0,0.00838218]
[1644218316214,0.327202,42744.0,42743.0,0.00838218]
[1644218316412,0.05851404,42746.0,42743.0,0.00838218]
[1644218316611,0.05,42746.0,42743.0,0.00838218]
[1644218316812,0.44369118,42747.0,42743.0,0.00838218]
[1644218316813,0.024,42744.0,42743.0,0.00838218]
[1644218318112,0.6603539,42747.0,42743.0,0.00838218]
[1644218318313,0.327202,42746.0,42743.0,0.0085908]
[1644218318555,0.27855329,42745.0,42742.0,0.00020862]
[1644218318760,0.05,42745.0,42744.0,0.00838218]
[1644218319057,0.02,42746.0,42744.0,0.00838218]
[1644218319256,0.377202,42745.0,42744.0,0.00838218]
[1644218319459,0.377202,42745.0,42744.0,0.26075884]
[1644218319657,0.05,42745.0,42744.0,0.26914102]
[1644218320064,0.13399559,42747.0,42744.0,0.26075884]
[1644218320258,0.13399559,42747.0,42744.0,0.26914102]
[1644218320561,0.13399559,42747.0,42744.0,0.00838218]
[1644218320761,0.15099559,42747.0,42744.0,0.00838218]
[1644218321159,0.327202,42746.0,42744.0,0.00838218]
[1644218321361,0.377202,42746.0,42744.0,0.00838218]
[1644218321560,0.327202,42745.0,42744.0,0.00838218]
[1644218321760,0.15099559,42747.0,42744.0,0.00838218]
[1644218322213,0.13399559,42747.0,42744.0,0.00838218]
[1644218322909,0.14799559,42747.0,42744.0,0.00838218]
[1644218323309,0.14799559,42747.0,42743.0,0.20110572]
[1644218323508,0.14799559,42747.0,42744.0,0.00838218]
[1644218323911,0.41561982,42746.0,42744.0,0.00838218]
[1644218324108,0.46561982,42746.0,42744.0,0.00838218]
[1644218324311,0.327202,42745.0,42744.0,0.00838218]
[1644218324509,0.374002,42745.0,42744.0,0.00838218]
[1644218324909,0.393002,42745.0,42744.0,0.00838218]
[1644218325510,0.393002,42745.0,42743.0,0.20042538]
[1644218325710,0.393002,42745.0,42744.0,0.00838218]
[1644218326160,0.374002,42745.0,42744.0,0.00838218]
[1644218326757,0.393002,42745.0,42744.0,0.00838218]
[1644218326958,0.346202,42745.0,42744.0,0.00838218]
[1644218327558,0.346202,42745.0,42743.0,0.200634]
[1644218327758,0.019,42745.0,42744.0,0.00838218]
[1644218328158,0.13399559,42747.0,42744.0,0.00838218]
[1644218328358,0.327202,42746.0,42744.0,0.00838218]
[1644218328559,0.377202,42746.0,42744.0,0.00838218]
[1644218328758,0.396202,42746.0,42744.0,0.00838218]
[1644218329359,0.327202,42745.0,42744.0,0.00838218]
[1644218329747,0.327202,42745.0,42744.0,0.20880756]
[1644218330935,0.346202,42745.0,42744.0,0.20042538]
[1644218331136,0.346202,42745.0,42744.0,0.20880756]
[1644218332137,0.327202,42745.0,42744.0,0.20880756]
[1644218332540,0.327202,42745.0,42744.0,0.00838218]
[1644218332739,0.327202,42745.0,42744.0,0.00175356]
[1644218332939,0.346202,42745.0,42744.0,0.00175356]
[1644218333867,0.39596128,42745.0,42744.0,0.00175356]
[1644218334066,0.377202,42745.0,42744.0,0.00175356]
[1644218334867,0.396202,42745.0,42744.0,0.00175356]
[1644218335067,0.396202,42745.0,42742.0,0.2514207]
[1644218335268,0.069,42745.0,42744.0,0.00175356]
[1644218335568,0.346202,42745.0,42744.0,0.00175356]
[1644218335767,0.396202,42745.0,42744.0,0.00175356]
[1644218336168,0.377202,42745.0,42744.0,0.00175356]
[1644218336870,0.396202,42745.0,42744.0,0.00175356]
[1644218337312,0.069,42745.0,42744.0,0.00175356]
[1644218337513,0.396202,42745.0,42744.0,0.00175356]
[1644218338112,0.424002,42745.0,42744.0,0.00175356]
[1644218338812,0.443002,42745.0,42744.0,0.00175356]
[1644218339011,0.76595407,42745.0,42744.0,0.00175356]
[1644218340015,0.74695407,42745.0,42744.0,0.00175356]
[1644218340516,0.70015407,42745.0,42744.0,0.00175356]
[1644218340960,0.44444844,42745.0,42744.0,0.00175356]
[1644218341162,0.44444844,42745.0,42742.0,0.2514207]
[1644218341361,0.11724644,42745.0,42744.0,0.00175356]
[1644218341561,0.44444844,42745.0,42744.0,0.00175356]
[1644218342161,0.42544844,42745.0,42744.0,0.00175356]
[1644218342760,0.44444844,42745.0,42744.0,0.00175356]
[1644218344063,0.377202,42745.0,42744.0,0.00175356]
[1644218344263,0.62232486,42745.0,42744.0,0.20234075]
[1644218344715,0.327202,42745.0,42744.0,0.20234075]
[1644218344910,0.346202,42745.0,42744.0,0.20234075]
[1644218345410,0.62245058,42745.0,42744.0,0.20234075]
[1644218345812,0.67245058,42745.0,42744.0,0.20234075]
[1644218346210,0.396202,42745.0,42744.0,0.20234075]
[1644218346412,0.396202,42745.0,42744.0,0.27723108]
[1644218346413,0.019,42745.0,42744.0,0.27723108]
[1644218346612,0.19976244,42750.0,42744.0,0.85028681]
[1644218346812,0.05,42750.0,42748.0,0.00175356]
[1644218347015,0.05,42750.0,42748.0,0.20232454]
[1644218347217,0.05,42751.0,42748.0,0.20232454]
[1644218347612,0.54708187,42752.0,42748.0,0.20232454]
[1644218348215,0.54708187,42752.0,42748.0,0.20296829]
[1644218348865,0.58008187,42752.0,42748.0,0.20296829]
[1644218349066,0.327202,42751.0,42748.0,0.20296829]
[1644218349265,0.327202,42751.0,42749.0,0.00175356]
[1644218349483,0.327202,42751.0,42748.0,0.20121473]
[1644218350467,0.327202,42751.0,42748.0,0.20057098]
[1644218350968,0.367202,42751.0,42748.0,0.20057098]
[1644218351371,0.04,42751.0,42748.0,0.20057098]
[1644218352811,0.103,42751.0,42748.0,0.20057098]
[1644218353611,0.34731943,42752.0,42748.0,0.20057098]
[1644218354013,0.34731943,42752.0,42747.0,0.00064915]
[1644218354014,0.04824644,42750.0,42746.0,0.20232454]
[1644218354215,0.04824644,42750.0,42748.0,0.00064914]
[1644218354515,0.327202,42749.0,42748.0,0.00064914]
[1644218354913,0.377202,42749.0,42748.0,0.00064914]
[1644218355314,0.377202,42749.0,42746.0,0.20232454]
[1644218355515,0.05,42749.0,42746.0,0.2029737]
[1644218355713,0.10850359,42750.0,42746.0,0.2029737]
[1644218355964,0.15675003,42750.0,42746.0,0.00240272]
[1644218356564,0.15675003,42750.0,42746.0,0.00175356]
[1644218356765,0.15675003,42750.0,42746.0,0.00240194]
[1644218356965,0.19875003,42750.0,42746.0,0.00240194]
[1644218357370,0.39851247,42750.0,42746.0,0.00240194]
[1644218357766,0.39851247,42750.0,42746.0,0.00175356]
[1644218357967,0.39851247,42750.0,42746.0,0.00240194]
[1644218358166,0.35651247,42750.0,42746.0,0.00240194]
[1644218358867,0.39251247,42750.0,42746.0,0.00175356]
[1644218359069,0.39251247,42750.0,42746.0,0.00240194]
[1644218360120,0.35651247,42750.0,42746.0,0.00175356]
[1644218360420,0.35651247,42750.0,42746.0,0.00240205]
[1644218361019,0.41551247,42750.0,42746.0,0.00240205]
[1644218361220,0.41551247,42750.0,42746.0,0.00175356]
[1644218361422,0.41551247,42750.0,42746.0,0.00240205]
[1644218362223,0.35651247,42750.0,42746.0,0.00240205]
[1644218362425,0.35651247,42750.0,42746.0,0.00175356]
[1644218362623,0.35651247,42750.0,42746.0,0.00240205]
[1644218362822,0.15675003,42750.0,42746.0,0.00240205]
[1644218363024,0.39701149,42750.0,42746.0,0.00240205]
[1644218363225,0.19675003,42750.0,42746.0,0.00240205]
[1644218363665,0.19675003,42750.0,42746.0,0.00175356]
[1644218363865,0.39702444,42750.0,42746.0,0.00240204]
[1644218364164,0.15675003,42750.0,42746.0,0.00240204]
[1644218364363,0.35703525,42750.0,42746.0,0.00240204]
[1644218364565,0.15675003,42750.0,42746.0,0.00240204]
[1644218364765,0.35703598,42750.0,42746.0,0.00240204]
[1644218364968,0.21075003,42750.0,42746.0,0.00175356]
[1644218365168,0.41103108,42750.0,42746.0,0.00240204]
[1644218365367,0.41103052,42750.0,42746.0,0.00240204]
[1644218365568,0.21075003,42750.0,42746.0,0.00240204]
[1644218365969,0.45782578,42750.0,42746.0,0.00240204]
[1644218366170,0.327202,42749.0,42746.0,0.00175356]
[1644218366369,0.327202,42749.0,42746.0,0.00240204]
[1644218366869,0.20355003,42750.0,42746.0,0.00240204]
[1644218367070,0.327202,42748.0,42746.0,0.00240204]
[1644218367317,0.05,42748.0,42746.0,0.00175356]
[1644218367915,0.099,42749.0,42746.0,0.00175356]
[1644218368114,0.3570214,42750.0,42746.0,0.00175356]
[1644218368916,0.4340214,42750.0,42746.0,0.00175356]
[1644218369718,0.327204,42749.0,42746.0,0.00175356]
[1644218370420,0.3570214,42750.0,42746.0,0.00175356]
[1644218371063,0.4220214,42750.0,42747.0,1.0252831]
[1644218372164,0.3570214,42750.0,42747.0,1.0252831]
[1644218372962,0.3880214,42750.0,42747.0,1.0252831]
[1644218374266,0.3570214,42750.0,42747.0,1.0252831]
[1644218374913,0.3980214,42750.0,42746.0,0.00239891]
[1644218375712,0.3980214,42750.0,42746.0,0.00175356]
[1644218375911,0.3980214,42750.0,42746.0,0.00239891]
[1644218376313,0.3570214,42750.0,42746.0,0.00239891]
[1644218376913,0.4400214,42750.0,42746.0,0.00175356]
[1644218377111,0.4400214,42750.0,42746.0,0.00239891]
[1644218378212,0.3570214,42750.0,42746.0,0.00240258]
[1644218379066,0.4420214,42750.0,42746.0,0.00240258]
[1644218379267,0.4420214,42750.0,42746.0,0.00175356]
[1644218379466,0.4420214,42750.0,42746.0,0.00240258]
[1644218380068,0.24175003,42750.0,42746.0,0.20295938]
[1644218380471,0.24175003,42750.0,42746.0,0.20231036]
[1644218380668,0.24175003,42750.0,42746.0,0.20295938]
[1644218381069,0.5300214,42750.0,42746.0,0.00240258]
[1644218381768,0.5300214,42750.0,42746.0,0.00175356]
[1644218381969,0.5300214,42750.0,42746.0,0.00240205]
[1644218382823,0.15675003,42750.0,42746.0,0.20231036]
[1644218383020,0.4450214,42750.0,42746.0,0.00240205]
[1644218383620,0.19650359,42750.0,42746.0,0.20295885]
[1644218383818,0.138,42750.0,42746.0,0.20295885]
[1644218384121,0.138,42750.0,42746.0,0.20231036]
[1644218384319,0.05,42750.0,42747.0,0.2005568]
[1644218384719,0.25027137,42752.0,42747.0,0.2005568]
[1644218385020,0.05,42750.0,42747.0,0.2015568]
[1644218386268,0.29851781,42752.0,42747.0,0.2005568]
[1644218386468,0.29851781,42752.0,42749.0,0.00175356]
[1644218386669,0.25027137,42752.0,42749.0,0.00175356]
[1644218387168,0.327204,42751.0,42749.0,0.00175356]
[1644218388173,0.327204,42751.0,42748.0,0.00064995]
[1644218388370,0.25027137,42752.0,42749.0,0.00175356]
[1644218388570,0.327204,42751.0,42749.0,0.00175356]
[1644218389724,0.28827137,42752.0,42749.0,0.00175356]
[1644218390019,0.28827137,42752.0,42747.0,0.2005568]
[1644218390220,0.04824644,42751.0,42748.0,0.00064964]
[1644218390421,0.24851781,42751.0,42748.0,0.00064964]
[1644218390621,0.327204,42750.0,42748.0,0.0024032]
[1644218390823,0.377204,42750.0,42748.0,0.0024032]
[1644218391020,0.377204,42750.0,42748.0,0.0044032]
[1644218391222,0.327204,42749.0,42748.0,0.00375356]
[1644218391621,0.05,42750.0,42748.0,0.00375356]
[1644218391821,0.087,42751.0,42748.0,0.002]
[1644218392321,0.05,42751.0,42747.0,0.20120645]
[1644218392523,0.05,42751.0,42747.0,0.2005568]
[1644218392721,0.25027137,42752.0,42747.0,0.2012065]
[1644218393121,0.047,42751.0,42747.0,0.2032065]
[1644218393765,0.047,42751.0,42747.0,0.2025568]
[1644218394066,0.047,42751.0,42748.0,0.00175356]
[1644218394268,0.25027137,42752.0,42748.0,0.00175356]
[1644218395168,0.28827137,42752.0,42748.0,0.00440325]
[1644218395568,0.28827137,42752.0,42748.0,0.20496005]
[1644218395769,0.28827137,42752.0,42751.0,0.00175356]
[1644218395972,0.415204,42752.0,42751.0,0.00175356]
[1644218396368,0.377204,42752.0,42751.0,0.00175356]
[1644218397070,0.410204,42752.0,42751.0,0.00175356]
[1644218397317,0.083,42752.0,42748.0,0.20055502]
[1644218397616,0.083,42752.0,42750.0,0.20055502]
[1644218397821,0.083,42752.0,42751.0,0.28219812]
[1644218398019,0.033,42752.0,42751.0,0.28219812]
[1644218398219,0.00028586,42755.0,42751.0,0.8600959]
[1644218398422,0.00028586,42756.0,42753.0,0.25063958]
[1644218398623,0.51092369,42765.0,42754.0,0.83238211]
[1644218398624,0.00028586,42757.0,42754.0,0.83238211]
[1644218398819,0.00028586,42759.0,42756.0,0.20046096]
[1644218399020,0.00028586,42760.0,42757.0,0.237197]
[1644218399218,0.00028586,42762.0,42755.0,0.41048739]
[1644218399419,0.00028586,42761.0,42755.0,0.41048739]
[1644218399619,0.00028586,42762.0,42755.0,0.41048739]
[1644218400119,0.20055723,42763.0,42756.0,0.26647617]
[1644218400319,0.20055723,42763.0,42756.0,0.34796092]
[1644218400320,0.00028586,42762.0,42756.0,0.34796092]
[1644218400618,0.00028586,42763.0,42756.0,0.34796092]
[1644218401070,0.00028586,42763.0,42756.0,0.35396092]
[1644218401274,0.25055723,42764.0,42756.0,0.35396092]
[1644218401570,0.00028586,42763.0,42756.0,0.35396092]
[1644218401770,0.25027137,42764.0,42756.0,0.35396092]
[1644218401970,0.00028586,42763.0,42756.0,0.35396092]
[1644218402173,0.05,42764.0,42756.0,0.55442188]
[1644218402371,0.00028586,42763.0,42756.0,0.54842188]
[1644218402672,0.05,42765.0,42756.0,0.34796092]
[1644218402871,0.00028586,42764.0,42756.0,0.34796092]
[1644218403071,0.00028586,42765.0,42756.0,0.35396092]
[1644218403272,0.25055723,42766.0,42756.0,0.35396092]
[1644218403471,0.00028586,42765.0,42756.0,0.35396092]
[1644218403672,0.25055723,42766.0,42756.0,0.35396092]
[1644218403876,0.05,42763.0,42756.0,0.006]
[1644218404172,0.05,42763.0,42756.0,0.27051656]
[1644218404373,0.20027137,42765.0,42756.0,0.26451656]
[1644218404374,0.00028586,42764.0,42756.0,0.26451656]
[1644218404572,0.05028586,42765.0,42756.0,0.26451656]
[1644218404821,0.00028586,42765.0,42756.0,0.26451656]
[1644218405020,0.00028586,42765.0,42756.0,0.27051656]
[1644218405219,0.05,42765.0,42756.0,0.3356621]
[1644218405419,0.05028586,42765.0,42757.0,0.21031268]
[1644218406119,0.05028586,42765.0,42756.0,0.006]
[1644218406422,0.05028586,42765.0,42755.0,0.46792187]
[1644218406820,0.05848565,42764.0,42751.0,0.20046096]
[1644218407019,0.05848565,42764.0,42749.0,0.64067694]
[1644218407020,0.05,42760.0,42755.0,0.007]
[1644218407423,0.05,42756.0,42755.0,0.007]
[1644218407623,0.0968,42756.0,42755.0,0.007]
[1644218408020,0.424004,42756.0,42755.0,0.007]
[1644218408222,0.474004,42756.0,42755.0,0.007]
[1644218408469,0.23706018,42752.0,42748.0,0.00064916]
[1644218408669,0.0468,42751.0,42749.0,0.327204]
[1644218408869,0.0468,42750.0,42749.0,0.327204]
[1644218410472,0.0468,42750.0,42748.0,0.008]
[1644218410473,0.0468,42750.0,42746.0,0.70679563]
[1644218410672,0.0468,42750.0,42747.0,0.32785311]
[1644218411073,0.0558,42750.0,42747.0,0.32785311]
[1644218411675,0.0558,42750.0,42747.0,0.327204]
[1644218412325,0.0468,42750.0,42747.0,0.327204]
[1644218412726,0.0468,42750.0,42747.0,0.377204]
[1644218412923,0.0468,42750.0,42748.0,0.237289]
[1644218413123,0.0668,42750.0,42748.0,0.237289]
[1644218414328,0.0468,42750.0,42748.0,0.237289]
[1644218415125,0.0638,42750.0,42748.0,0.242289]
[1644218415526,0.0638,42750.0,42748.0,0.292289]
[1644218415728,0.0638,42750.0,42749.0,0.327188]
[1644218416570,0.0468,42750.0,42746.0,0.50633467]
[1644218416771,0.0468,42750.0,42747.0,0.32785312]
[1644218417572,0.0468,42750.0,42747.0,0.37785312]
[1644218417772,0.0468,42750.0,42748.0,0.237289]
[1644218419175,0.0608,42750.0,42748.0,0.239289]
[1644218420523,0.0468,42750.0,42748.0,0.237289]
[1644218421124,0.0638,42750.0,42748.0,0.240289]
[1644218422425,0.0468,42750.0,42748.0,0.237289]
[1644218423226,0.0658,42750.0,42748.0,0.237289]
[1644218423673,0.0658,42750.0,42745.0,0.20046096]
[1644218423873,0.0658,42750.0,42746.0,0.327204]
[1644218424073,0.0658,42750.0,42747.0,0.00064913]
[1644218424474,0.0468,42750.0,42747.0,0.00064913]
[1644218424976,0.0468,42750.0,42746.0,0.327204]
[1644218425177,0.0628,42750.0,42747.0,0.006]
[1644218425375,0.0628,42750.0,42748.0,0.237297]
[1644218425575,0.0628,42750.0,42747.0,0.006]
[1644218426976,0.0468,42750.0,42746.0,0.00064913]
[1644218427223,0.0478245,42750.0,42747.0,0.327204]
[1644218428418,0.0238245,42750.0,42747.0,0.327204]
[1644218429222,0.0478245,42750.0,42747.0,0.327204]
[1644218430323,0.0238245,42750.0,42747.0,0.327204]
[1644218431272,0.0488245,42750.0,42747.0,0.327204]
[1644218432273,0.0488245,42750.0,42747.0,0.52766496]
[1644218432476,0.0238245,42750.0,42747.0,0.52766496]
[1644218432676,0.05,42751.0,42747.0,0.52766496]
[1644218433075,0.074,42751.0,42747.0,0.52754764]
[1644218433476,0.074,42751.0,42747.0,0.52821888]
[1644218434480,0.074,42751.0,42747.0,0.52754764]
[1644218434719,0.024,42751.0,42747.0,0.52821888]
[1644218434921,0.124,42751.0,42747.0,0.52821888]
[1644218435122,0.074,42751.0,42747.0,0.52821888]
[1644218435321,0.124,42751.0,42747.0,0.52821888]
[1644218435719,0.124,42751.0,42747.0,0.52754764]
[1644218435919,0.124,42751.0,42747.0,0.52819363]
[1644218436922,0.05,42751.0,42747.0,0.52754764]
[1644218437221,0.121,42751.0,42747.0,0.53019363]
[1644218437624,0.071,42751.0,42747.0,0.53019363]
[1644218438021,0.121,42751.0,42747.0,0.53019363]
[1644218438221,0.121,42751.0,42747.0,0.52954764]
[1644218438479,0.1,42751.0,42747.0,0.52819363]
[1644218439079,0.122,42751.0,42747.0,0.52819363]
[1644218439279,0.122,42751.0,42747.0,0.52754764]
[1644218439480,0.122,42751.0,42747.0,0.5281973]
[1644218440481,0.122,42751.0,42747.0,0.52754764]
[1644218440780,0.122,42751.0,42747.0,0.5281973]
[1644218440982,0.1,42751.0,42747.0,0.5281973]
[1644218441283,0.124,42751.0,42747.0,0.5281973]
[1644218441681,0.124,42751.0,42747.0,0.52754764]
[1644218441882,0.124,42751.0,42747.0,0.5281973]
[1644218442918,0.1,42751.0,42747.0,0.52754764]
[1644218443114,0.12,42751.0,42747.0,0.53019677]
[1644218444116,0.12,42751.0,42747.0,0.52954764]
[1644218444417,0.1,42751.0,42747.0,0.52819677]
[1644218445216,0.124,42751.0,42747.0,0.52819677]
[1644218445420,0.074,42751.0,42747.0,0.52754764]
[1644218445717,0.074,42751.0,42749.0,0.237282]
[1644218446381,0.05,42751.0,42749.0,0.237282]
[1644218446881,0.05,42753.0,42749.0,0.237282]
[1644218447081,0.05,42753.0,42748.0,0.20111015]
[1644218447281,0.021,42751.0,42748.0,0.20111015]
[1644218447482,0.021,42751.0,42749.0,0.327198]
[1644218448683,0.1,42753.0,42749.0,0.52765896]
[1644218448983,0.05,42753.0,42749.0,0.52765896]
[1644218449185,0.05,42753.0,42751.0,0.20046096]
[1644218449186,0.019,42753.0,42751.0,0.20046096]
[1644218449385,0.019,42753.0,42752.0,0.70784721]
[1644218449824,0.019,42753.0,42752.0,0.50738625]
[1644218450423,0.00028586,42755.0,42752.0,0.50738625]
[1644218450630,0.00028586,42757.0,42752.0,0.75802583]
[1644218450825,0.25055723,42759.0,42755.0,0.20049678]
[1644218451024,0.00028586,42758.0,42756.0,0.20049678]
[1644218451224,0.008,42757.0,42756.0,0.20049678]
[1644218451625,0.008,42757.0,42755.0,0.20049678]
[1644218452425,0.00028586,42760.0,42755.0,0.20049678]
[1644218452624,0.20027137,42761.0,42755.0,0.20049678]
[1644218452625,0.20055723,42761.0,42755.0,0.20049678]
[1644218452826,0.25055723,42761.0,42755.0,0.20049678]
[1644218453328,0.28355723,42761.0,42755.0,0.20649678]
[1644218453772,0.08328586,42761.0,42755.0,0.20649678]
[1644218453973,0.05,42756.0,42755.0,0.006]
[1644218454572,0.04988104,42756.0,42754.0,0.20049678]
[1644218454774,0.00028586,42760.0,42753.0,0.20049678]
[1644218454973,0.04988104,42756.0,42754.0,0.20049678]
[1644218455272,0.04988104,42756.0,42752.0,0.26079264]
[1644218455273,0.04988104,42756.0,42753.0,0.20749678]
[1644218455473,0.04988104,42756.0,42754.0,0.327198]
[1644218455975,0.00028586,42759.0,42754.0,0.327198]
[1644218456171,0.05328586,42760.0,42756.0,0.23480639]
[1644218456374,0.00028586,42759.0,42756.0,0.23480639]
[1644218456573,0.00028586,42760.0,42756.0,0.23480639]
[1644218456774,0.30015241,42761.0,42756.0,0.23480639]
[1644218456977,0.30015241,42761.0,42758.0,0.26062622]
[1644218456978,0.00028586,42760.0,42758.0,0.26062622]
[1644218457228,0.00028586,42760.0,42756.0,0.23017522]
[1644218457229,0.049,42760.0,42756.0,0.23017522]
[1644218457422,0.04928586,42760.0,42756.0,0.23017522]
[1644218458221,0.04928586,42760.0,42756.0,0.46058292]
[1644218458624,0.00028586,42760.0,42756.0,0.45458292]
[1644218458820,0.09988104,42761.0,42756.0,0.23052666]
[1644218459022,0.00028586,42760.0,42756.0,0.2304077]
[1644218459221,0.046,42760.0,42756.0,0.2354077]
[1644218459422,0.046,42760.0,42756.0,0.23552666]
[1644218459423,0.04628586,42760.0,42756.0,0.23552666]
[1644218459623,0.04628586,42760.0,42756.0,0.43595334]
[1644218460022,0.04628586,42760.0,42756.0,0.23552666]
[1644218460422,0.04628586,42760.0,42756.0,0.23052666]
[1644218460625,0.00028586,42760.0,42756.0,0.23052666]
[1644218460825,0.09988104,42761.0,42756.0,0.23052666]
[1644218461071,0.04988104,42761.0,42756.0,0.23052666]
[1644218461274,0.047,42760.0,42756.0,0.23552666]
[1644218461569,0.04728586,42760.0,42756.0,0.23552666]
[1644218462571,0.0997069,42761.0,42756.0,0.23052666]
[1644218463373,0.1447069,42761.0,42756.0,0.23552666]
[1644218464574,0.0997069,42761.0,42756.0,0.23052666]
[1644218465223,0.1527069,42761.0,42756.0,0.23552666]
[1644218466525,0.0997069,42761.0,42756.0,0.23052666]
[1644218467422,0.1517069,42761.0,42756.0,0.23552666]
[1644218468471,0.1517069,42761.0,42756.0,0.23052666]
[1644218468472,0.0997069,42761.0,42756.0,0.23052666]
[1644218469273,0.1497069,42761.0,42756.0,0.23452666]
[1644218470279,0.1497069,42761.0,42756.0,0.43495334]
[1644218470474,0.0997069,42761.0,42757.0,0.327198]
[1644218471072,0.04982586,42761.0,42757.0,0.327198]
[1644218471275,0.09988104,42763.0,42757.0,0.333198]
[1644218471777,0.04988104,42762.0,42757.0,0.333198]
[1644218471974,0.04988104,42762.0,42757.0,0.006]
[1644218472635,0.04988104,42762.0,42756.0,0.48095334]
[1644218472835,0.04988104,42762.0,42756.0,0.43095334]
[1644218473334,0.04988104,42762.0,42756.0,0.43895334]
[1644218474138,0.04988104,42762.0,42756.0,0.008]
[1644218474139,0.31804999,42762.0,42756.0,0.008]
[1644218474340,0.02488104,42758.0,42756.0,0.008]
[1644218474537,0.327198,42757.0,42756.0,0.008]
[1644218474737,0.72794536,42757.0,42753.0,0.20042668]
[1644218474938,0.327198,42755.0,42749.0,0.1212]
[1644218475137,0.63206685,42754.0,42749.0,0.1212]
[1644218475337,0.96246485,42754.0,42753.0,0.006]
[1644218475536,1.03414589,42754.0,42753.0,0.006]